Cogmind - Beta 13 @@@ ROGUE MODE // 2024.05.09 @ 11:58:50 Player: Silfurdreki Result: Destroyed by D-53 Grenadier with Mini Grenade Launcher Performance ------------- Evolutions (0) 0 Regions Visited (2) 400 Robots Destroyed (15) 75 Value Destroyed (275) 275 Prototype IDs (0) 0 Alien Tech Used (0) 0 Bonus (0) 0 TOTAL SCORE: 750 Bonus ------- None Cogmind --------- Core Integrity 0/250 Matter 227/300 Energy 92/100 System Corruption 8% Temperature Cool (0) Movement Walking (120) Location -10/Mines Parts ------- > --- POWER (1) -------- (None) > --- PROPULSION (2) --- Aluminum Leg Aluminum Leg > --- UTILITY (2) ------ Medium Storage Unit > --- WEAPON (2) ------- Autogun > --- INVENTORY (10) --- Structural Scanner Experimental Sensor Array Signal Interpreter Targeting Computer Autogun Peak State ------------ > --- POWER ------------ Ion Engine > --- PROPULSION ------- Aluminum Leg Aluminum Leg > --- UTILITY ---------- Medium Storage Unit Seismic Detector > --- WEAPON ----------- Autogun Autogun > --- INVENTORY -------- Light Ion Engine Aluminum Leg Aluminum Leg Wheel Structural Scanner Experimental Sensor Array Signal Interpreter Targeting Computer Hardened Light Armor Plating Autogun [Rating: 11] Favorites ----------- Power Light Ion Engine Engine Light Ion Engine Propulsion Aluminum Leg Leg Aluminum Leg Wheel Wheel Utility Small Storage Unit Device Seismic Detector Storage Small Storage Unit Protection Hardened Light Armor Plating Weapon Light Assault Rifle Ballistic Gun Light Assault Rifle Build | -11 -10 -10 ------- Run | Yrd Mat Min Slots Evolved . | . . . Power . | . . . Propulsion . | . . . Utility . | . . . Weapon . | . . . Parts Attached 21 | 7 7 7 Power 3 | 1 1 1 Engine 3 | 1 1 1 Core . | . . . Reactor . | . . . Propulsion 10 | 2 3 5 Treads . | . . . Leg 9 | 2 3 4 Wheel 1 | . . 1 Hover . | . . . Flight . | . . . Utility 4 | 2 1 1 Device 1 | 1 . . Storage 2 | 1 1 . Processor . | . . . Hackware . | . . . Protection 1 | . . 1 Artifact . | . . . Weapon 4 | 2 2 . Energy Gun . | . . . Energy Cannon . | . . . Ballistic Gun 4 | 2 2 . Ballistic Cannon . | . . . Launcher . | . . . Special Weapon . | . . . Impact Weapon . | . . . Slashing Weapon . | . . . Piercing Weapon . | . . . Special Melee Weapon . | . . . Unidentified Prototypes . | . . . Parts Lost 8 | . . 8 Power 2 | . . 2 Propulsion 3 | . . 3 Utility 2 | . . 2 Weapon 1 | . . 1 Highest Loss Streak 8 | . . 8 To Critical Strikes . | . . . Average Slot Usage (%) 97 | . 100 94 Engine 13 | . 14 11 Leg 27 | . 28 26 Device 12 | . 14 11 Storage 14 | . 14 14 Ballistic Gun 27 | . 28 27 Naked Turns . | . . . Heaviest Build 22 | 12 22 22 Greatest Support 20 | 20 20 20 Greatest Overweight (x) 1 | . 1 1 Average Overweight (x) . | . . . Largest Inventory Capacity 10 | 8 10 10 Average Capacity 8 | 7 9 10 Most Carried 10 | 3 10 10 Average Carried 4 | 2 7 9 Final Capacity 10 | 8 10 10 Final Carried 9 | 3 9 5 Class Distribution -------------------- 86% | Mutant 13% | Scavenger-Mutant Dominant Class ---------------- Mutant | -10/Materials Scavenger-Mutant | -10/Mines Resources | -11 -10 -10 ----------- Run | Yrd Mat Min Matter Collected 797 | 208 198 391 Remotely . | . . . Salvage Created 533 | 11 198 324 Parts 34 | 6 18 10 Haulers Intercepted . | . . . Recyclers Shooed 1 | 1 . . Parts Field Recycled . | . . . Retrieved Matter . | . . . Parts Self-Destructed . | . . . Prevented . | . . . Kills | -11 -10 -10 ------- Run | Yrd Mat Min Combat Hostiles Destroyed 27 | . 8 19 Guns 27 | . 8 19 Classes Destroyed 5 | 1 3 1 Tunneler 1 | 1 . . Watcher 1 | . 1 . Swarmer 9 | . 6 3 Grunt 4 | . 2 2 Assembled 14 | . . 14 Best Kill Streak 14 | 1 3 14 Combat Bots Only 14 | . 3 14 Max Kills in Single Turn 2 | 1 1 2 Gunslinging 1 | . . 1 Exploded . | . . . Melee . | . . . Uniques/NPCs Destroyed . | . . . Combat | -11 -10 -10 -------- Run | Yrd Mat Min Hostile Shots Fired 125 | . 47 78 Missed 27 | . 12 15 Damage Taken 1391 | . 383 1008 Core 252 | . 75 177 Absorbed by Shields . | . . . Core Remaining (%) 100 | 100 . . Volleys Fired 82 | 5 34 43 Largest 2 | 2 2 2 Hottest 46 | 40 46 46 Shots Fired 159 | 10 68 81 Gun 159 | 10 68 81 Cannon . | . . . Launcher . | . . . Special . | . . . Kinetic 159 | 10 68 81 Thermal . | . . . Explosive . | . . . Electromagnetic . | . . . Robot Hit Streak 8 | 5 8 8 Robot Miss Streak 4 | 1 3 4 Penetration Max . | . . . Secondary Targets 7 | . 1 6 Max Gunslinging Chain 1 | . 1 1 Shots Hit Robots 104 | 8 40 56 Core Hits 48 | 1 12 35 Critical Kills . | . . . Critical Parts Destroyed . | . . . Critical Strikes . | . . . Melee Attacks . | . . . Impact . | . . . Slashing . | . . . Piercing . | . . . Sneak Attacks . | . . . Combat Hostiles . | . . . Follow-up Attacks . | . . . Damage Inflicted 1367 | 79 449 839 Guns 1367 | 79 449 839 Cannons . | . . . Explosions . | . . . Melee . | . . . Ramming . | . . . Kinetic 1367 | 79 449 839 Thermal . | . . . Explosive . | . . . Electromagnetic . | . . . Impact . | . . . Slashing . | . . . Piercing . | . . . Highest Corruption 8 | . . 8 Average Corruption 6 | . . 6 Corruption Purged . | . . . Corruption Blocked . | . . . Effects 4 | . . 4 Energy Discharges 1 | . . 1 Data Loss (major) 1 | . . 1 Weapon Failures 2 | . . 2 Overload Shots . | . . . Overflow Damage . | . . . Projectiles . | . . . Explosions . | . . . Melee . | . . . Knockbacks . | . . . Impact . | . . . Kinetic . | . . . Secondary . | . . . Self-Inflicted Damage . | . . . Shots . | . . . Rammed . | . . . Targets Rammed . | . . . Kicked . | . . . Crushed . | . . . Highest Temperature 172 | . 18 172 Average Temperature 47 | . 8 62 Received Heat Transfer 359 | . 108 251 Siege Activations . | . . . Robots Corrupted . | . . . Combat Hostiles . | . . . Parts Fried . | . . . Impact Corruptions . | . . . Robots Melted . | . . . Combat Hostiles . | . . . Parts Melted . | . . . Heat Transferred . | . . . Parts Sabotaged . | . . . Parts Stolen . | . . . Parts Stripped . | . . . Power Chain Reactions . | . . . Alert | -11 -10 -10 ------- Run | Yrd Mat Min Peak Influence 223 | 5 223 135 Initial 3 | . 3 . Average 16 | . 45 42 Maximum Alert Level 1 | . 1 . Low Security (%) 99 | 100 95 100 Level 1 . | . 4 . Level 2 . | . . . Level 3 . | . . . Level 4 . | . . . Level 5 . | . . . High Security . | . . . Max Security . | . . . Squads Dispatched . | . . . Investigation . | . . . Extermination . | . . . Reinforcement . | . . . Assault . | . . . Garrison . | . . . Intercept . | . . . Searches Triggered . | . . . Construction Impeded . | . . . Haulers Reinforced . | . . . Active Scanning Responses . | . . . Cargo Convoy Interrupts . | . . . Stealth | -11 -10 -10 --------- Run | Yrd Mat Min Distress Signals 1 | . 1 . Communications Jammed . | . . . Distress Signals . | . . . Times Spotted 43 | . 13 30 Peak Tracking Total 17 | . 4 17 Tactical Retreats 4 | . 1 3 Traps | -11 -10 -10 ------- Run | Yrd Mat Min Traps Triggered . | . . . Indirectly . | . . . Trap Hack Attempts . | . . . Triggered . | . . . Disarmed . | . . . Reprogrammed . | . . . Reused . | . . . Traps Extracted . | . . . Installed . | . . . Triggered . | . . . Machines | -11 -10 -10 ---------- Run | Yrd Mat Min Machines Disabled . | . . . Max in Single Turn . | . . . Machines Repaired . | . . . Machines Dismantled . | . . . Machines Sabotaged . | . . . Overloaded Fab Kills . | . . . Hacking | -11 -10 -10 --------- Run | Yrd Mat Min Machines Accessed 6 | . 6 . Terminals 6 | . 6 . Fabricators . | . . . Repair Stations . | . . . Recycling Units . | . . . Scanalyzers . | . . . Garrison Access . | . . . Total Hacks 22 | . 22 . Successful 13 | . 13 . Failed 9 | . 9 . Catastrophic . | . . . Database Lockouts . | . . . Manual 17 | . 17 . Terminals 22 | . 22 . Fabricators . | . . . Repair Stations . | . . . Recycling Units . | . . . Scanalyzers . | . . . Garrison Access . | . . . Terminal Hacks 9 | . 9 . Robot Analysis 3 | . 3 . Branch Access Points 1 | . 1 . Emergency Access Points 1 | . 1 . Terminal Index 1 | . 1 . Unreport Threat 1 | . 1 . Locate Traps 1 | . 1 . Hauler Manifests 1 | . 1 . Fabricator Hacks . | . . . Repair Station Hacks . | . . . Recycling Unit Hacks . | . . . Scanalyzer . | . . . Garrison Access Hacks . | . . . Unauthorized Hacks 4 | . 4 . Terminals 4 | . 4 . Botnet 4 | . 4 . Fabricators . | . . . Repair Stations . | . . . Recycling Units . | . . . Scanalyzers . | . . . Garrison Access . | . . . Data Cores Recovered . | . . . Used . | . . . Hacking Detections 5 | . 5 . Full Trace Events 1 | . 1 . Feedback Events . | . . . Feedback Blocked . | . . . Robot Schematics Acquired . | . . . Robots Built . | . . . Authchips . | . . . Time . | . . . Total Robot Build Rating . | . . . Part Schematics Acquired . | . . . Parts Built . | . . . Authchips . | . . . Time . | . . . Total Part Build Rating . | . . . Parts Repaired . | . . . Time . | . . . Parts Recycled . | . . . Recycled Matter . | . . . Retrieved Matter . | . . . Retrieved Components . | . . . Parts Scanalyzed . | . . . Part Schematics Acquired . | . . . Parts Damaged . | . . . Bothacking | -11 -10 -10 ------------ Run | Yrd Mat Min Used RIF Installer . | . . . Robots Hacked . | . . . Non-combat . | . . . Combat . | . . . Robot Hacks Applied . | . . . Relay Couplers Released . | . . . Fabnet Peak Effective % . | . . . Robots Rewired . | . . . Allies Hacked . | . . . Hacks Repelled . | . . . Allies | -11 -10 -10 -------- Run | Yrd Mat Min Total Allies . | . . . Largest Group . | . . . Highest-Rated Group . | . . . Highest-Rated Ally . | . . . Total Orders . | . . . Ally Attacks . | . . . Total Damage . | . . . Kills . | . . . Allies Corrupted . | . . . Allies Melted . | . . . Intel | -11 -10 -10 ------- Run | Yrd Mat Min Robot Analysis Total 3 | . 3 . Derelict Logs Recovered 1 | . . 1 Drone Launches . | . . . Drone Recoveries . | . . . Exploration | -11 -10 -10 ------------- Run | Yrd Mat Min Turns Passed 4308 | 2701 921 686 Spaces Moved 1679 | 839 535 305 Core 4 | 4 . . Treads . | . . . Legs 1675 | 835 535 305 Wheels . | . . . Hover . | . . . Flight . | . . . Fastest Speed 50 | 50 120 120 Average Speed 138 | 119 144 181 Slowest Speed 190 | 120 190 190 Overloaded Moves . | . . . Propulsion Burnouts . | . . . Robots Hopped . | . . . Cave-ins Triggered . | . . . Exploration Rate (%) 78 | 88 87 61 Regions Visited 2 Branch Regions 1 Pre-discovered Areas . | . . . Known Exits Taken 1 | . 1 . Unknown Exits Taken 1 | 1 . . Scrap Searched . | . . . Spaces Dug . | . . . Terrain Destroyed . | . . . Melee . | . . . Projectile . | . . . AOE . | . . . Terrain Rammed . | . . . Walls Destroyed . | . . . Machines Disabled . | . . . Actions | -11 -10 -10 --------- Run | Yrd Mat Min Total 3517 | 2523 624 370 Wait 1717 | 1670 34 13 Move 1677 | 838 534 305 Hop . | . . . Pick Up 12 | 3 8 1 Fast Attach 7 | 7 . . Attach 5 | . . 5 Detach . | . . . Swap 9 | . 7 2 Drop 8 | . 7 1 Fire 82 | 5 34 43 Melee . | . . . Ram . | . . . Kick . | . . . Crush . | . . . Escape Stasis . | . . . Rewire . | . . . Trap . | . . . Miscellaneous . | . . . Route ------- -11/Scrapyard -10/Materials (discovered 3 exits: [*Mat x2] / *Min) -10/Mines History --------- Turn | Location | Event 24 | -11/Scrapyard | Discovered new exit (range 14) 2702 | -11/Scrapyard | Entered Materials 2703 | -10/Materials | Build established: Mutant 2817 | -10/Materials | Identified exit to Mines 3177 | -10/Materials | Discovered new exit (range 16) 3545 | -10/Materials | Discovered new exit (range 5) 3623 | -10/Materials | Entered Mines 3685 | -10/Mines | Found a damaged Exp. Sensor Array with a note attached 3689 | -10/Mines | Found Prototype Device 3919 | -10/Mines | Learned 4 Materials zone layouts 3945 | -10/Mines | Build established: Scavenger-Mutant 3981 | -10/Mines | Found a hidden stash of uninstalled traps 4170 | -10/Mines | Assembled infested the area 4175 | -10/Mines | Assisted by a Guerilla fighting off Assembled 4222 | -10/Mines | Core integrity fell below 50% 4253 | -10/Mines | Core integrity fell below 20% 4296 | -10/Mines | Destroyed 14 combat bots 4301 | -10/Mines | Lost 8 parts (2p3n2u1w) 4309 | -10/Mines | Destroyed by D-53 Grenadier with Mini Grenade Launcher Last Messages --------------- 04258_ as-12577 destroyed. 04260_ Hrd. Light Armor Plating destroyed. 04263_ Acquired 16 matter. 04264_ System corrupted: Autogun jammed. 04269_ as-22722 destroyed. 04269_ Switching to secondary target: as-38717. 04270_ Autogun destroyed. 04273_ System corrupted: Substantial component data lost. 04275_ as-38717 destroyed. 04277_ Acquired 28 matter. 04280_ Acquired 70 matter. 04281_ Acquired 12 matter. 04282_ Acquired 15 matter. 04286_ Acquired 4 matter. 04287_ Acquired 1 matter. 04288_ Acquired 18 matter. 04289_ Acquired 31 matter. 04290_ Acquired 13 matter. 04292_ System corrupted: Energy discharge (-33). 04301_ The unstable cave ceiling collapses. Map ----- +----------------------------------------------------+ | ?????## ## #??# #?????????? | | ??????# ## ####??# #????????## | | ??????# ## #?????# #???????## | | ??????# ## #?????# #??????## | | ??????# ##!####??# #?????## | | ????### !%= #??# #?????# | | ????# ##### #??# #????## | | ????# ###?????#??# #???## | | ????# #??????????# #???#[ | | ????# #?????# #### ##### # | | ????# #?????# ## | | ????# #?????## ######## ##? | | ????# #???????????????## #?? | | ????# #????????????????## | | ????# #?????????????????# ## | | ????# #????###??????????# #?? | | ????# #???# ##?????????# #?? | | ????# ##?# #?????????# #?? | | ???## ## #????????? ?? | | ???# #??? ????? ?? | | ???# ##?# ????# ?? | | ???## ## ???? ? | | ???## ???? ? | | ???# ???? #? | | ???# d d ????? ##? | | ??## @ ## # ????????? | | ??# ##?## ?????????? | | ??# #?????####??????????? | | ??# #??????????????????? | | ??## #??????????????????? | | ???## < ##??????????????????? | | ????# #???????????????????? | | ????# #???????????????????? | | ????# #???????????????????? | | ????## ##???????????????????? | | ??????###????????????????????? | | ?????????????????????????????? | | ?????????????????????????????? | | ?????????????????????????????? | | ?????????????????????????????? | | ?????????????????????????????? | | ?????????????????????????????? | | | | | | | | | | | | | | | | | +----------------------------------------------------+ Best States ------------- Heat Dissipation 25 Energy Generation 10 Energy Capacity 250 Matter Stores 277 Matter Capacity 300 Sight Range 16 Terrain Scan Density 10 Armor Coverage 150 Evasion (%) 55 Item Schematics ----------------- None Robot Schematics ------------------ None Fabricated ------------ Nothing Alien Tech Used ----------------- None Achievements -------------- None Challenges ------------ None Game ------ Seed MissileTacticalNanoactuators Manual? 0 Play Time 00:15:55 Cumulative 23.5 hours Start 2024.05.09 @ 11:46:07 End 2024.05.09 @ 11:58:50 Sessions 1 Manual Loads 0 Difficulty Rogue Special Mode None Game No. 40 Rogue 40 Adventurer 0 Explorer 0 Win Type - Total 0 Types 0/0/0/0/0/0/0/0/0 Lore% 31 Gallery% 30 Achievement% 25 Wizard Run 0 Options --------- Layout 0 ASCII 0 Keyboard 0 Movement Numpad Keybinds 0 Fullscreen 1 Font 18/SmallcapsGlow Map View 76x50 Zoom Use 0% Tactical HUD 1 Map Filters NONE Filters NONE Steam 1 RUN: 573c7d6e-296f-404e-b8e4-a110a3818963